bitfinex/quotes_ETHUSD_20250807
["timestamp","ask_amount","ask_price","bid_price","bid_amount"]
[1754543114011,1e-08,3668.3,3668.2,7.8991327]
[1754543114337,0.001,3668.7,3668.6,2.72583546]
[1754543114541,0.001,3668.7,3668.6,7.38301259]
[1754543115346,1e-08,3668.7,3668.6,7.38301259]
[1754543115551,0.001,3668.9,3668.8,2.72568687]
[1754543115843,0.001,3668.9,3668.8,16.49041017]
[1754543116043,0.001,3668.9,3668.8,17.43791644]
[1754543116418,0.001,3668.9,3668.8,17.57391644]
[1754543118912,1e-08,3669.1,3668.9,2.72561258]
[1754543119117,1e-08,3669.1,3669.0,16.62626159]
[1754543119315,1e-08,3669.1,3669.0,17.17143872]
[1754543119512,0.44650001,3669.1,3669.0,17.17143872]
[1754543120246,1e-08,3669.1,3669.0,17.17143872]
[1754543120432,1e-08,3669.1,3669.0,17.63283872]
[1754543120965,1e-08,3669.1,3669.0,17.63383872]
[1754543121244,1e-08,3669.1,3669.0,18.09063872]
[1754543122046,1e-08,3669.1,3669.0,17.63383872]
[1754543122453,1e-08,3669.1,3669.0,18.09063872]
[1754543123958,1e-08,3669.1,3669.0,17.17243872]
[1754543124129,1e-08,3669.1,3669.0,7.51971542]
[1754543125061,1e-08,3669.1,3669.0,7.98111542]
[1754543126564,1e-08,3669.1,3669.0,7.51871542]
[1754543126764,1e-08,3669.1,3669.0,7.98011542]
[1754543131869,1e-08,3669.1,3669.0,8.45371542]
[1754543133068,1e-08,3669.1,3669.0,7.99231542]
[1754543133268,1e-08,3669.1,3669.0,8.45371542]
[1754543134447,1e-08,3669.1,3669.0,7.99231542]
[1754543135772,1e-08,3669.1,3669.0,8.45371542]
[1754543136143,0.001,3669.5,3669.4,2.72524118]
[1754543136356,0.001,3669.5,3669.4,7.2447653]
[1754543136756,0.001,3669.5,3669.4,7.7061653]
[1754543136986,0.001,3669.5,3669.4,7.2447653]
[1754543137165,0.001,3669.5,3669.4,6.97224118]
[1754543138192,0.932,3669.5,3669.4,6.97224118]
[1754543140791,0.001,3669.5,3669.4,6.97224118]
[1754543141158,0.001,3669.5,3669.4,7.43364118]
[1754543141354,0.4594,3669.5,3669.4,6.97224118]
[1754543141582,0.932,3669.5,3669.4,6.97224118]
[1754543141779,0.932,3669.5,3669.4,2.86124118]
[1754543141993,0.932,3669.5,3669.4,6.97124118]
[1754543142291,0.932,3669.5,3669.4,2.86124118]
[1754543144995,0.001,3669.5,3669.4,2.86124118]
[1754543145394,0.4594,3669.5,3669.4,2.86124118]
[1754543146676,0.4594,3669.5,3669.4,6.97124118]
[1754543147400,0.4594,3669.5,3669.4,6.97624118]
[1754543147573,0.932,3669.5,3669.4,6.97624118]
[1754543147774,0.932,3669.5,3669.4,2.86124118]
[1754543148901,0.4594,3669.5,3669.4,2.86124118]
[1754543150799,0.001,3669.5,3669.4,2.86124118]
[1754543151803,0.4565,3669.5,3669.4,2.86124118]
[1754543153196,0.9316,3669.5,3669.4,2.86124118]
[1754543154970,0.4565,3669.5,3669.4,2.86124118]
[1754543158170,0.9316,3669.5,3669.4,2.72524118]
[1754543158374,2.00363233,3669.5,3669.4,2.72524118]
[1754543159682,0.9316,3669.5,3669.4,2.72524118]
[1754543160627,0.001,3669.5,3669.4,2.72524118]
[1754543160989,0.001,3669.5,3669.4,3.20134118]
[1754543161499,0.001,3669.5,3669.4,2.72524118]
[1754543162782,0.001,3669.5,3669.4,3.20134118]
[1754543162988,0.001,3669.5,3669.4,3.85068936]
[1754543163604,0.001,3669.5,3669.4,4.28148936]
[1754543164588,0.001,3669.5,3669.4,8.39548936]
[1754543165130,0.001,3669.9,3669.8,2.72494413]
[1754543165486,0.001,3669.9,3669.8,3.76784413]
[1754543165685,0.001,3669.9,3669.8,4.14167935]
[1754543167320,0.001,3669.9,3669.8,3.71087935]
[1754543167521,0.001,3669.9,3669.8,4.14167935]
[1754543169692,0.001,3669.9,3669.8,3.71087935]
[1754543170024,0.001,3669.9,3669.8,4.14167935]
[1754543170608,0.001,3669.9,3669.8,3.23477935]
[1754543171194,0.001,3669.9,3669.8,3.71087935]
[1754543175893,0.4565,3669.9,3669.8,3.23477935]
[1754543176094,0.001,3669.9,3669.8,3.71087935]
[1754543178735,0.001,3669.9,3669.8,3.23477935]
[1754543178899,0.4565,3669.9,3669.8,3.23477935]
[1754543179302,0.001,3669.9,3669.8,3.23477935]
[1754543179646,0.4565,3669.9,3669.8,3.23477935]
[1754543180034,0.001,3669.9,3669.8,3.70807935]
[1754543181433,0.001,3669.9,3669.8,4.15587935]
[1754543181735,0.001,3669.9,3669.8,3.70807935]
[1754543182745,0.001,3669.9,3669.8,3.23477935]
[1754543182944,0.001,3669.9,3669.8,2.86094413]
[1754543183140,0.4655,3669.9,3669.8,2.86094413]
[1754543183844,0.001,3669.9,3669.8,2.86094413]
[1754543184812,0.4655,3669.9,3669.8,2.86094413]
[1754543185747,0.001,3669.9,3669.8,2.86094413]
[1754543186075,0.001,3669.9,3669.8,3.33424413]
[1754543189738,0.001,3669.9,3669.8,2.86094413]
[1754543189923,0.9294,3669.9,3669.8,2.86094413]
[1754543190128,0.9294,3669.9,3669.8,2.72494413]
[1754543190337,0.9294,3669.9,3669.7,2.86101712]
[1754543190530,0.001,3669.9,3669.7,2.72501712]
[1754543190840,0.9284,3669.8,3669.7,2.72501712]
[1754543193722,0.9284,3669.8,3669.6,2.72508489]
[1754543193917,0.9284,3669.7,3669.6,2.72508489]
[1754543195364,0.4645,3669.7,3669.6,2.72508489]
[1754543196054,0.001,3669.9,3669.5,0.136]
[1754543196252,0.4655,3669.9,3669.8,2.72494413]
[1754543197257,0.001,3669.9,3669.8,2.72494413]
[1754543198573,0.001,3669.9,3669.6,2.72502623]
[1754543198874,0.9294,3669.9,3669.7,2.72497919]
[1754543199175,0.9284,3669.8,3669.7,2.72497919]
[1754543199526,0.4645,3669.8,3669.7,2.72497919]
[1754543199937,0.9284,3669.8,3669.6,2.72508937]
[1754543200159,0.4645,3669.7,3669.6,2.72508937]
[1754543206696,4.111,3669.8,3669.7,2.72501839]
[1754543206880,4.5755,3669.8,3669.7,2.72501839]
[1754543207861,4.111,3669.8,3669.7,2.72501839]
[1754543208061,4.111,3669.8,3669.7,3.19831839]
[1754543208460,0.137,3669.9,3669.8,2.72494413]
[1754543208786,4.112,3669.9,3669.8,3.19824413]
[1754543209189,4.112,3669.9,3669.8,3.64604413]
[1754543209757,4.112,3669.9,3669.8,3.19824413]
[1754543210592,0.001,3669.9,3669.8,2.72494413]
[1754543211364,0.001,3669.9,3669.8,3.17894413]
[1754543214038,0.4484,3669.9,3669.8,2.72494413]
[1754543215522,0.4484,3669.9,3669.5,0.002]
[1754543215721,0.96820226,3669.8,3669.5,0.002]
[1754543215935,4.111,3669.7,3669.5,0.002]
[1754543216193,4.5584,3669.7,3669.5,0.002]
[1754543216357,4.5584,3669.7,3669.6,2.72502581]
[1754543216847,4.111,3669.7,3669.5,0.002]
[1754543217058,4.963549,3669.6,3669.5,0.002]
[1754543217235,14.78357456,3669.6,3669.5,0.002]
[1754543217556,14.7522723,3669.6,3669.5,0.002]
[1754543218262,17.47736495,3669.6,3669.5,0.002]
[1754543218606,17.7928863,3669.6,3669.5,0.002]
[1754543219253,17.9021513,3669.6,3669.5,0.002]
[1754543220420,17.58662995,3669.6,3669.5,0.002]
[1754543220869,8.831314,3669.6,3669.5,0.002]
[1754543221161,9.320814,3669.6,3669.5,0.002]
[1754543221560,11.93664165,3669.6,3669.5,0.002]
[1754543230766,12.04590665,3669.6,3669.5,0.002]
[1754543233131,19.22590665,3669.6,3669.5,0.002]
[1754543233762,15.11390665,3669.6,3669.5,0.002]
[1754543233953,19.22590665,3669.6,3669.5,0.002]
[1754543235963,14.62440665,3669.6,3669.5,0.002]
[1754543236175,18.73640665,3669.6,3669.5,0.002]
[1754543237868,18.28900665,3669.6,3669.5,0.002]
[1754543238603,11.451914,3669.6,3669.5,0.002]
[1754543238871,15.563914,3669.6,3669.5,0.456]
[1754543239372,18.28900665,3669.6,3669.5,0.456]
[1754543240387,18.28900665,3669.6,3669.5,0.002]
[1754543241283,18.28900665,3669.6,3669.5,0.48]
[1754543242659,18.29000665,3669.6,3669.5,0.48]
[1754543242861,11.452914,3669.6,3669.5,0.48]
[1754543243060,15.564914,3669.6,3669.5,0.48]
[1754543243280,18.29000665,3669.6,3669.5,0.48]
[1754543246479,18.74590665,3669.6,3669.5,0.002]
[1754543247062,18.29000665,3669.6,3669.5,0.002]
[1754543247382,18.29000665,3669.6,3669.5,0.48]
[1754543248483,18.29000665,3669.6,3669.5,0.002]
[1754543248684,18.29000665,3669.6,3669.5,0.48]
[1754543251195,18.29000665,3669.6,3669.5,0.002]
[1754543251500,18.74590665,3669.6,3669.5,0.002]
[1754543251674,19.21540665,3669.6,3669.5,0.002]
[1754543252973,19.530928,3669.6,3669.5,0.002]
[1754543254405,6.27524118,3669.4,3669.3,0.002]
[1754543254611,23.07220275,3669.4,3669.3,0.002]
[1754543254907,23.99760275,3669.4,3669.3,0.002]
[1754543256306,3.27538973,3669.2,3669.1,0.002]
[1754543256613,10.87021334,3669.2,3669.1,0.002]
[1754543256776,10.83891108,3669.2,3669.1,0.002]
[1754543256979,14.34407033,3669.2,3669.1,0.002]
[1754543259308,21.52407033,3669.2,3669.1,0.002]
[1754543260632,21.63335533,3669.2,3669.1,0.002]
[1754543264798,0.55,3668.9,3668.6,0.002]
[1754543264999,6.27583546,3668.6,3668.5,0.002]
[1754543265318,10.84035681,3668.6,3668.5,0.002]
[1754543265639,11.87505981,3668.6,3668.5,0.002]
[1754543269007,19.05505981,3668.6,3668.5,0.002]
[1754543269809,19.32815981,3668.6,3668.5,0.002]
[1754543270005,22.05682167,3668.6,3668.5,0.002]
[1754543270223,21.27180032,3668.6,3668.5,0.002]
[1754543271351,20.54280032,3668.6,3668.5,0.8858]
[1754543271925,19.99280032,3668.6,3668.5,0.8858]
[1754543272153,17.26413846,3668.6,3668.5,0.8858]
[1754543272306,17.81413846,3668.6,3668.5,0.8858]
[1754543272512,13.70113846,3668.6,3668.5,0.8858]
[1754543272827,17.81413846,3668.6,3668.5,0.002]
[1754543273027,17.81413846,3668.6,3668.5,0.4583]
[1754543273244,20.54280032,3668.6,3668.5,0.4583]
[1754543273540,20.54280032,3668.6,3668.5,0.002]
[1754543274242,20.54280032,3668.6,3668.5,0.4583]
[1754543275137,20.54280032,3668.6,3668.5,0.002]
[1754543275442,20.54280032,3668.6,3668.5,0.4583]
[1754543276441,21.25950032,3668.6,3668.5,0.002]
[1754543276622,22.06532167,3668.6,3668.5,0.002]
[1754543278222,3.27598408,3668.4,3668.3,0.002]
[1754543278417,20.52553099,3668.4,3668.3,0.002]
[1754543278747,6.59157974,3668.3,3668.2,1e-08]
[1754543278934,7.52547974,3668.3,3668.2,1e-08]
[1754543279855,6.27635568,3667.9,3667.8,0.002]
[1754543280059,28.12333996,3667.9,3667.8,0.002]
[1754543280271,28.25933996,3667.9,3667.8,0.002]
[1754543280824,28.25933996,3667.9,3667.8,0.4583]
[1754543281472,28.25933996,3667.9,3667.8,0.002]
[1754543281770,29.16123996,3667.9,3667.8,0.002]
[1754543282073,28.71763996,3667.9,3667.8,0.4583]
[1754543284960,28.71763996,3667.9,3667.8,0.002]
[1754543285756,29.16123996,3667.9,3667.8,0.002]
[1754543286174,29.36874463,3667.9,3667.8,0.002]
[1754543286846,28.92514463,3667.9,3667.8,0.002]
[1754543288565,28.92514463,3667.9,3667.8,0.4583]
[1754543289537,28.92514463,3667.9,3667.8,0.8858]
[1754543290451,28.92514463,3667.9,3667.8,0.4583]
[1754543291876,28.92514463,3667.9,3667.8,0.002]
[1754543293075,29.36874463,3667.9,3667.8,0.002]
[1754543293669,28.92514463,3667.9,3667.8,0.002]
[1754543294642,28.92514463,3667.9,3667.8,0.4583]
[1754543296383,24.81114463,3667.9,3667.8,0.4583]
[1754543296585,28.92514463,3667.9,3667.8,0.4583]
[1754543298486,24.81114463,3667.9,3667.8,0.4583]
[1754543298668,28.92514463,3667.9,3667.8,0.4583]
[1754543299588,29.36874463,3667.9,3667.8,0.002]
[1754543299883,29.68426598,3667.9,3667.8,0.002]
[1754543301290,29.24066598,3667.9,3667.8,0.4689]
[1754543301663,28.92514463,3667.9,3667.8,0.9126]
[1754543302591,28.92514463,3667.9,3667.8,0.4689]
[1754543303503,28.92514463,3667.9,3667.8,0.002]
[1754543303716,29.39614463,3667.9,3667.8,0.002]
[1754543304472,29.71166598,3667.9,3667.8,0.002]
[1754543305892,36.26666598,3667.9,3667.8,0.002]
[1754543306192,36.73836598,3667.9,3667.8,0.002]
[1754543306488,6.27665303,3667.5,3667.4,0.002]
[1754543306691,20.04437633,3667.5,3667.4,0.002]
[1754543306895,20.04437633,3667.5,3667.4,0.4689]
[1754543307091,20.18037633,3667.5,3667.4,0.4689]
[1754543307296,20.18037633,3667.5,3667.4,0.9126]
[1754543307479,22.86715757,3667.5,3667.4,0.9126]
[1754543309188,23.00317487,3667.5,3667.4,0.9126]
[1754543310504,30.18317487,3667.5,3667.4,0.9126]
[1754543311900,26.06817487,3667.5,3667.4,0.9126]
[1754543312078,30.18317487,3667.5,3667.4,0.9126]
[1754543315902,30.18317487,3667.5,3667.4,0.4689]
[1754543317186,30.18317487,3667.5,3667.4,0.002]
[1754543317367,30.65417487,3667.5,3667.4,0.002]
[1754543318005,31.12587487,3667.5,3667.4,0.002]
[1754543319306,30.65417487,3667.5,3667.4,0.002]
[1754543320176,30.18317487,3667.5,3667.4,0.002]
[1754543320614,31.12587487,3667.5,3667.4,0.002]
[1754543321107,30.76350987,3667.5,3667.4,0.002]
[1754543323289,31.23520987,3667.5,3667.4,0.002]
[1754543324091,30.76350987,3667.5,3667.4,0.002]
[1754543324287,30.29250987,3667.5,3667.4,0.002]
[1754543324491,31.55073122,3667.5,3667.4,0.002]
[1754543324796,30.60803122,3667.5,3667.4,0.002]
[1754543325396,30.60803122,3667.5,3667.4,0.4689]
[1754543325798,30.29250987,3667.5,3667.4,0.4689]
[1754543328129,30.29250987,3667.5,3667.4,0.002]
[1754543328333,30.76350987,3667.5,3667.4,0.002]
[1754543328631,30.76350987,3667.5,3667.1,0.002]
[1754543328632,6.27687609,3667.2,3667.1,0.002]
[1754543328792,20.04459939,3667.2,3667.1,0.002]
[1754543329128,20.65159939,3667.2,3667.1,0.002]
[1754543329320,21.07646674,3667.2,3667.1,0.002]
[1754543329525,28.25646674,3667.2,3667.1,0.002]
[1754543329728,29.99619888,3667.2,3667.1,0.002]
[1754543330224,29.68067753,3667.2,3667.1,0.4697]
[1754543331024,25.56567753,3667.2,3667.1,0.4697]
[1754543331237,29.68067753,3667.2,3667.1,0.9076]
[1754543331912,29.68067753,3667.2,3667.1,0.4697]
[1754543335350,29.68067753,3667.2,3667.1,0.002]
[1754543335804,29.68067753,3667.2,3667.1,0.4697]
[1754543337204,29.68067753,3667.2,3667.1,0.002]
[1754543337807,30.13087753,3667.2,3667.1,0.002]
[1754543338308,30.48314888,3667.2,3667.1,0.002]
[1754543339031,30.03294888,3667.2,3667.1,0.002]
[1754543339240,30.48314888,3667.2,3667.1,0.002]
[1754543339811,30.48314888,3667.2,3666.8,0.002]
[1754543339812,6.27695045,3667.1,3666.8,0.002]
[1754543340172,6.27747108,3666.4,3666.3,0.4677]
[1754543340465,20.04519438,3666.4,3666.3,0.4677]
[1754543340826,20.18119438,3666.4,3666.3,0.4677]
[1754543341049,22.86797562,3666.4,3666.3,0.4677]
[1754543341544,6.27754548,3666.3,3666.1,0.4677]
[1754543341743,6.27754548,3666.3,3666.2,0.4697]
[1754543347862,6.27754548,3666.3,3666.2,0.9076]
[1754543348853,6.27754548,3666.3,3666.2,0.4697]
[1754543349056,9.00620734,3666.3,3666.2,0.4697]
[1754543349869,9.00620734,3666.3,3666.2,0.002]
[1754543350073,9.45640734,3666.3,3666.2,0.002]
[1754543350272,9.80867869,3666.3,3666.2,0.002]
[1754543350479,10.26467869,3666.3,3666.2,0.002]
[1754543350850,9.80867869,3666.3,3666.2,0.002]
[1754543352072,9.00620734,3666.3,3666.2,0.002]
[1754543352274,13.12120734,3666.3,3666.2,0.4697]
[1754543354145,13.59090734,3666.3,3666.2,0.4697]
[1754543354973,13.59090734,3666.3,3666.2,0.9076]
[1754543355579,10.39366186,3666.3,3666.2,0.9076]
[1754543355793,10.39254548,3666.3,3666.2,0.9076]
[1754543356242,0.136,3666.4,3666.2,0.9076]
[1754543356589,7.665,3666.3,3666.2,0.002]
[1754543357264,7.665,3666.3,3666.2,0.9076]
[1754543357465,0.136,3666.4,3666.2,0.9076]
[1754543357666,4.115,3666.3,3666.2,0.002]
[1754543357865,4.665,3666.3,3666.2,0.002]
[1754543358378,4.665,3666.3,3666.2,0.9076]
[1754543358553,2.44679509,3666.3,3666.2,0.9076]
[1754543360092,0.55,3666.3,3666.2,3.99916376]
[1754543360264,3.136,3666.4,3666.3,2.72754548]
[1754543360465,3.136,3666.4,3666.3,3.65104548]
[1754543360466,0.136,3666.4,3666.3,3.65104548]
[1754543360772,4.801,3666.4,3666.3,3.65104548]
[1754543360968,4.801,3666.4,3666.3,4.31028499]
[1754543362153,1.91392981,3666.7,3666.6,2.72732231]
[1754543362386,9.02892981,3666.7,3666.6,3.65082231]
[1754543362709,9.71492981,3666.7,3666.6,3.65082231]
[1754543362911,9.71492981,3666.7,3666.6,4.0147662]
[1754543363291,6.02892981,3666.7,3666.6,4.0147662]
[1754543363476,6.02892981,3666.7,3666.6,4.1507662]
[1754543365206,6.02892981,3666.7,3666.6,4.0147662]
[1754543366013,6.57892981,3666.7,3666.6,4.0147662]
[1754543367718,6.03392981,3666.7,3666.6,4.0147662]
[1754543375856,6.58392981,3666.7,3666.6,3.5559662]
[1754543376057,0.55,3666.6,3666.4,2.72741609]
[1754543376362,4.669,3666.5,3666.4,2.72741609]
[1754543376761,4.669,3666.5,3666.4,3.19211609]
[1754543376963,4.669,3666.5,3666.4,3.19217108]
[1754543383205,4.669,3666.5,3666.4,2.72747108]
[1754543383575,4.669,3666.5,3666.4,3.19217108]
[1754543389828,0.55,3666.5,3666.4,3.19217108]
[1754543390029,2.46392981,3666.7,3666.6,2.72732231]
[1754543390217,6.58092981,3666.7,3666.6,3.66352231]
[1754543390734,6.03192981,3666.7,3666.6,3.66352231]
[1754543391845,0.001,3667.0,3666.9,2.72709918]
[1754543392037,4.12,3667.0,3666.9,2.86309918]
[1754543392315,4.12,3667.0,3666.9,3.79929918]
[1754543394421,0.001,3667.0,3666.9,3.79929918]
[1754543395025,0.001,3667.0,3666.9,3.32889918]
[1754543395239,0.001,3667.0,3666.9,3.98075781]
[1754543395739,0.001,3667.0,3666.9,4.45115781]
[1754543396403,0.001,3667.4,3667.3,2.72680173]
[1754543396708,0.001,3667.7,3667.4,2.72672738]
[1754543397030,0.001,3668.5,3667.8,2.72643001]
[1754543397321,4.12,3668.3,3667.8,3.23375478]
[1754543397510,4.12,3668.3,3667.8,4.16995478]
[1754543400232,1e-08,3668.2,3668.1,2.72620702]
[1754543400456,1e-08,3668.2,3668.1,6.87246909]
[1754543400619,1e-08,3668.2,3668.1,7.49706565]
[1754543400823,1e-08,3668.2,3668.1,8.56926565]
[1754543404348,1e-08,3668.2,3668.1,3.97986565]
[1754543404534,1e-08,3668.2,3668.1,7.63506565]
[1754543405044,1e-08,3668.2,3668.1,8.10086565]
[1754543406312,1e-08,3668.2,3668.1,8.57126565]
[1754543406541,1e-08,3668.2,3668.1,4.45026565]
[1754543407247,1e-08,3668.2,3668.1,3.97986565]
[1754543408761,1e-08,3668.2,3668.1,4.45026565]
[1754543410749,1e-08,3668.2,3668.1,7.45026565]
[1754543412853,1e-08,3668.2,3668.1,14.10298895]
[1754543413383,1e-08,3668.6,3668.5,12.37863307]
[1754543413582,1e-08,3668.6,3668.5,16.86995784]
[1754543413779,1e-08,3668.6,3668.5,17.00595784]
[1754543413981,1e-08,3668.6,3668.5,17.94215784]
[1754543415182,1e-08,3668.6,3668.5,8.28943454]
[1754543421569,1e-08,3668.6,3668.5,7.81903454]
[1754543423007,1e-08,3668.6,3668.5,8.24873454]
[1754543423169,1e-08,3668.9,3668.8,2.72568687]
[1754543423364,1e-08,3669.0,3668.9,2.72561258]
[1754543423568,1e-08,3669.0,3668.9,3.63811258]
[1754543423871,1e-08,3669.0,3668.9,3.8013687]
[1754543426270,1e-08,3669.0,3668.9,3.77411258]
[1754543426469,1e-08,3669.0,3668.9,4.17269347]
[1754543426714,1e-08,3669.3,3669.2,2.72538973]
[1754543426923,1e-08,3669.3,3669.2,7.00664362]
[1754543427206,1e-08,3669.4,3669.3,2.72531545]
[1754543427585,1e-08,3669.4,3669.3,3.63781545]
[1754543427786,1e-08,3669.4,3669.3,4.28967408]
[1754543429309,1e-08,3669.4,3669.3,3.85997408]
[1754543429926,1e-08,3669.4,3669.3,4.31692723]
[1754543430474,1e-08,3669.4,3669.3,4.28967408]
[1754543431309,1e-08,3669.4,3669.3,3.85997408]
[1754543433009,1e-08,3669.4,3669.3,3.37717408]
[1754543433575,1e-08,3669.4,3669.3,3.85997408]
[1754543444049,1e-08,3669.4,3669.3,4.28967408]
[1754543444198,1e-08,3669.4,3669.3,4.31692723]
[1754543444400,1e-08,3669.4,3669.3,4.28967408]
[1754543444714,1e-08,3669.4,3669.3,4.31692723]
[1754543444907,1e-08,3669.4,3669.3,4.28967408]
[1754543445112,1e-08,3669.4,3669.3,4.31692723]
[1754543446037,1e-08,3669.4,3669.3,7.49117408]
[1754543446249,1e-08,3669.4,3669.3,7.97397408]
[1754543448605,1e-08,3669.4,3669.3,3.85997408]
[1754543448805,1e-08,3669.4,3669.3,7.97397408]
[1754543449013,1e-08,3669.4,3669.3,7.49017408]
[1754543449240,0.95540001,3669.4,3669.3,2.72531545]
[1754543449456,0.95540001,3669.4,3669.3,6.83831545]
[1754543449754,0.95540001,3669.4,3669.3,2.72531545]
[1754543450755,1e-08,3669.4,3669.3,2.72531545]
[1754543451049,0.47270001,3669.4,3669.3,2.72531545]
[1754543451255,0.95990001,3669.4,3669.3,2.72531545]
[1754543451853,0.47270001,3669.4,3669.3,2.72531545]
[1754543452017,1e-08,3669.4,3669.3,2.72531545]
[1754543452954,0.47270001,3669.4,3669.3,2.72531545]
[1754543453868,1e-08,3669.4,3669.3,2.72531545]
[1754543454070,1e-08,3669.4,3669.3,3.2237686]
[1754543454242,1e-08,3669.4,3669.3,3.65821545]
[1754543454424,1e-08,3669.4,3669.3,3.79421545]
[1754543455269,1e-08,3669.7,3669.6,2.72509265]
[1754543455420,1e-08,3669.7,3669.6,6.83909265]
[1754543455626,1e-08,3669.7,3669.6,7.90799265]
[1754543457460,1e-08,3669.7,3669.6,7.44629265]
[1754543458262,1e-08,3669.7,3669.6,6.97509265]
[1754543458653,0.47270001,3669.7,3669.6,6.97509265]
[1754543458855,1e-08,3669.7,3669.6,6.97509265]
[1754543459249,1e-08,3669.7,3669.6,7.44629265]
[1754543462831,1e-08,3669.7,3669.6,6.97509265]
[1754543463040,0.47270001,3669.7,3669.6,6.97509265]
[1754543464891,1e-08,3669.7,3669.6,7.90799265]
[1754543468078,0.001,3670.1,3669.6,7.90799265]
[1754543468079,1e-08,3670.3,3669.6,7.77199265]
[1754543468238,1e-08,3670.3,3670.2,2.72464715]
[1754543468444,1e-08,3670.3,3670.2,6.97564715]
[1754543468644,1e-08,3670.3,3670.2,7.90854715]
[1754543470280,1e-08,3670.3,3670.2,6.97564715]
[1754543470445,0.47270001,3670.3,3670.2,6.97564715]
[1754543470648,1e-08,3670.3,3670.2,6.97564715]
[1754543472660,0.95990001,3670.3,3670.2,6.97564715]
[1754543474084,0.47270001,3670.3,3670.2,6.97564715]
[1754543474243,1e-08,3670.3,3670.2,6.97564715]
[1754543474784,1e-08,3670.3,3670.2,7.44684715]
[1754543480781,1e-08,3670.3,3670.2,6.97564715]
[1754543481196,0.44920001,3670.3,3670.2,6.97564715]
[1754543482662,0.44920001,3670.3,3670.2,6.97364715]
[1754543482905,0.93920001,3670.3,3670.2,6.97364715]
[1754543484576,0.93920001,3670.3,3670.2,2.86064715]
[1754543485086,0.93920001,3670.3,3670.2,6.97364715]
[1754543486796,0.44920001,3670.3,3670.2,6.97364715]
[1754543487164,0.44920001,3670.3,3670.2,2.86064715]
[1754543487370,0.93920001,3670.3,3670.2,6.97264715]
[1754543489470,0.93920001,3670.3,3670.2,2.86064715]
[1754543489870,0.44920001,3670.3,3670.2,2.86064715]
[1754543490405,0.44920001,3670.3,3670.2,6.97364715]
[1754543490771,0.93920001,3670.3,3670.2,6.97364715]
[1754543491790,0.93920001,3670.3,3670.2,2.86064715]
[1754543493772,1.48920001,3670.3,3670.0,2.7247353]
[1754543493974,0.9392,3670.2,3669.9,0.136]
[1754543494410,1.11439234,3670.3,3669.9,2.86086553]
[1754543494579,0.9392,3670.1,3670.0,2.72479564]
[1754543495112,0.4492,3670.1,3670.0,2.72479564]
[1754543496814,0.9392,3670.1,3670.0,2.72479564]
[1754543497196,1e-08,3670.3,3670.2,2.72464715]
[1754543497197,0.55000001,3670.3,3670.2,2.72464715]
[1754543497384,1e-08,3670.3,3670.2,2.72464715]
[1754543497593,1e-08,3670.3,3670.2,3.81924715]
[1754543499019,1e-08,3670.3,3670.2,3.35774715]
[1754543499423,1e-08,3670.3,3670.2,3.81924715]
[1754543500824,1e-08,3670.3,3670.2,7.93124715]
[1754543502088,1e-08,3670.3,3670.2,7.46974715]
[1754543502295,1e-08,3670.3,3670.2,7.93124715]
[1754543505824,1e-08,3670.3,3670.2,3.35774715]
[1754543506024,1e-08,3670.3,3670.2,7.47074715]
[1754543506332,1e-08,3670.3,3670.2,7.93224715]
[1754543509025,1e-08,3670.3,3670.2,6.97364715]
[1754543509265,1e-08,3670.3,3670.2,2.86064715]
[1754543509432,1e-08,3670.3,3670.2,6.97364715]
[1754543509727,1e-08,3670.3,3670.2,7.93224715]
[1754543522466,1e-08,3670.5,3670.4,2.72449869]
[1754543522668,1e-08,3670.5,3670.4,6.83749869]
[1754543522890,1e-08,3670.5,3670.4,6.97349869]
[1754543523053,1e-08,3670.5,3670.4,7.91689869]
[1754543523677,1e-08,3670.5,3670.4,7.45939869]
[1754543524749,1e-08,3670.5,3670.4,6.97349869]
[1754543525092,0.43770001,3670.5,3670.4,6.97349869]
[1754543525573,1e-08,3670.5,3670.4,6.97349869]
[1754543525933,0.43770001,3670.5,3670.4,6.97349869]
[1754543527377,1e-08,3670.5,3670.4,6.97349869]
[1754543527554,1e-08,3670.5,3670.4,7.45939869]
[1754543528958,1e-08,3670.5,3670.4,6.97349869]
[1754543530673,1e-08,3670.5,3670.4,7.45939869]
[1754543532474,1e-08,3670.5,3670.4,6.97349869]
[1754543533275,1e-08,3670.5,3670.4,7.45939869]
[1754543533974,1e-08,3670.5,3670.4,7.91689869]
[1754543534436,1e-08,3670.5,3670.4,2.86049869]
[1754543534787,0.55,3670.4,3670.1,0.002]
[1754543534965,1e-08,3670.5,3670.4,2.72449869]
[1754543535145,1e-08,3670.5,3670.4,3.48304856]
[1754543535796,1e-08,3670.5,3670.4,8.07254856]
[1754543535976,1e-08,3670.5,3670.4,3.94054856]
[1754543536174,1e-08,3670.5,3670.4,8.07254856]
[1754543536543,1e-08,3670.5,3670.4,7.61504856]
[1754543539172,1e-08,3670.5,3670.4,8.07254856]
[1754543539979,1e-08,3670.5,3670.4,7.61504856]
[1754543543167,0.43620001,3670.5,3670.4,7.12914856]
[1754543543572,0.43620001,3670.5,3670.4,2.72449869]
[1754543543573,0.91470001,3670.5,3670.4,2.72449869]
[1754543543901,0.91470001,3670.5,3670.1,0.002]
[1754543544102,9.6527233,3670.3,3670.1,0.002]
[1754543544400,0.55,3670.2,3670.1,0.002]
[1754543544803,1.4647,3670.2,3670.1,0.002]
[1754543547522,3.00324233,3670.2,3670.1,0.002]
[1754543548854,3.00324233,3670.2,3670.1,2.72672139]
[1754543548995,1.4647,3670.2,3670.1,2.72672139]
[1754543550539,0.9862,3670.2,3670.1,0.002]
[1754543550721,0.9862,3670.2,3670.1,2.72672139]
[1754543550909,5.1162,3670.2,3670.1,2.72672139]
[1754543552733,0.136,3670.3,3670.2,2.72464715]
[1754543553025,4.13,3670.3,3670.2,3.19624715]
[1754543554004,4.5662,3670.3,3670.2,2.72464715]
[1754543555200,0.4362,3670.3,3670.2,2.72464715]